Cogmind - Beta 16 @@@ ROGUE MODE // 2025.10.28 @ 21:12:01 Player: beans Result: Destroyed by P-70 Sage with High-powered Shock Rifle Performance ------------- Evolutions (6) 3000 Regions Visited (7) 1400 Robots Destroyed (36) 180 Value Destroyed (1622) 1622 Prototype IDs (8) 160 Alien Tech Used (0) 0 Bonus (1136) 1136 TOTAL SCORE: 7498 Bonus ------- Follower Combat Kills 336 Registered with UFD 300 Met Optimus in HQ 500 Cogmind --------- Core Integrity 0/1150 Matter 19/300 Energy 35/100 System Corruption 11% Temperature Cool (0) Movement Rolling (90) Location -4/Factory Parts ------- > --- POWER (2) -------- (None) > --- PROPULSION (6) --- Centrium Wheel > --- UTILITY (8) ------ 0b10 Decoder Chip [Generic] Advanced Salvage Targeting Computer Advanced Salvage Targeting Computer Improved Target Analyzer > --- WEAPON (3) ------- (None) > --- INVENTORY (5) ---- Graviton Reactor Dispersion Rifle CPS Tube (2) CPS Tube (2) CPS Tube (2) Peak State ------------ > --- POWER ------------ Fission Core Graviton Reactor > --- PROPULSION ------- Spiked Treads Heavy Treads Heavy Treads Overtuned Medium Treads > --- UTILITY ---------- Scrap Suit Disposable Heat Sink High-capacity Storage Unit > --- WEAPON ----------- Minigun Overtuned Railgun Heavy Rocket Launcher > --- INVENTORY -------- Q-thruster 0b10 Decoder Chip [Generic] Launcher Guidance Computer Improved Target Analyzer Transmission Jammer Heavy Laser Plasma Rifle Proton Cannon Heavy Machine Gun Fusion Bomb Launcher CPS Tube CPS Tube CPS Tube CPS Tube CPS Tube CPS Tube CPS Tube Multitool Botcube [Rating: 80] Favorites ----------- Power Fission Core Engine Subdweller Power Source Power Core Fission Core Reactor Fusion Reactor Propulsion Spiked Treads Treads Spiked Treads Wheel Subdweller Monowheel Utility High-capacity Storage Unit Device Scrap Suit Storage High-capacity Storage Unit Processor Advanced Salvage Targeting Computer Protection Scrap Shield Weapon Minigun Energy Gun Variable Charge Gun Energy Cannon Proton Cannon Ballistic Gun Minigun Ballistic Cannon Battle Cannon Launcher Heavy Rocket Launcher Special Weapon Flamer Build | -11 -10 -10 -7 -5 -5 -5 -4 ------- Run | Yrd Mat Sub Scr Fac Was Fac Fac Slots Evolved 12 | . . . . 10 . . 2 Power 1 | . . . . 1 . . . Propulsion 4 | . . . . 4 . . . Utility 6 | . . . . 4 . . 2 Weapon 1 | . . . . 1 . . . Parts Attached 41 | 1 . 14 8 1 5 4 8 Power 4 | . . 1 1 . 1 1 . Engine 1 | . . 1 . . . . . Core 1 | . . . 1 . . . . Reactor 2 | . . . . . 1 1 . Propulsion 9 | . . 4 2 . 2 . 1 Treads 5 | . . 1 2 . 2 . . Leg . | . . . . . . . . Wheel 4 | . . 3 . . . . 1 Hover . | . . . . . . . . Flight . | . . . . . . . . Utility 8 | . . 2 1 1 . 1 3 Device 2 | . . 1 . 1 . . . Storage 1 | . . . 1 . . . . Processor 4 | . . . . . . 1 3 Hackware . | . . . . . . . . Protection 1 | . . 1 . . . . . Artifact . | . . . . . . . . Weapon 20 | 1 . 7 4 . 2 2 4 Energy Gun 4 | . . . 1 . . 1 2 Energy Cannon 1 | . . . . . . 1 . Ballistic Gun 6 | 1 . 2 2 . 1 . . Ballistic Cannon 4 | . . 2 . . . . 2 Launcher 2 | . . 1 . . 1 . . Special Weapon 3 | . . 2 1 . . . . Impact Weapon . | . . . . . . . . Slashing Weapon . | . . . . . . . . Piercing Weapon . | . . . . . . . . Special Melee Weapon . | . . . . . . . . Unidentified Prototypes 2 | . . . . . 1 1 . Parts Lost 20 | . . 6 . . . 6 8 Power 1 | . . . . . . . 1 Propulsion 5 | . . 1 . . . 3 1 Utility 3 | . . 1 . . . 1 1 Weapon 11 | . . 4 . . . 2 5 Highest Loss Streak 5 | . . 5 . . . 4 4 To Critical Strikes 1 | . . . . . . . 1 Average Backups 10 | . . 3 11 16 17 18 16 Power . | . . . . . . . 1 Propulsion . | . . . . . . 1 . Utility 2 | . . . 4 4 4 3 2 Weapon 3 | . . 2 2 4 4 4 5 Tool/Special . | . . . . . . . . Unused Backups 15 | 2 . . 1 . . . 12 Power . | . . . . . . . . Propulsion 3 | 2 . . . . . . 1 Utility 4 | . . . 1 . . . 3 Weapon 1 | . . . . . . . 1 Tool/Special 7 | . . . . . . . 7 Average Slot Usage (%) 58 | . 14 49 69 46 60 53 42 Core 4 | . . . 8 5 5 3 . Treads 13 | . . 6 17 11 19 15 2 Device 3 | . . 4 . 10 11 7 4 Storage 7 | . . . 13 5 5 5 4 Processor 1 | . . . . . . 2 19 Protection 1 | . . 7 . . . . . Ballistic Gun 15 | . 14 4 27 11 11 4 1 Ballistic Cannon 4 | . . 14 . . . 2 4 Peak Build Rating 80 | 1 1 13 30 43 80 78 76 Average Rating 27 | . 1 8 19 38 62 65 55 On Entrance 27 | . 1 1 5 30 43 80 59 Avg Prop Armor Cover (%) 1 | . . 1 10 . . . . Naked Turns . | . . . . . . . . Heaviest Build 86 | 2 2 29 58 67 86 82 82 Greatest Support 185 | 3 3 40 45 45 185 185 70 Greatest Overweight (x) 23 | . . 7 2 1 1 1 23 Average Overweight (x) 1 | . . . 1 1 . . 2 Largest Inventory Capacity 20 | 5 5 5 20 20 20 20 20 Average Capacity 15 | 5 5 5 19 20 20 20 18 Most Carried 20 | 2 . 5 20 20 20 20 20 Average Carried 11 | . . 3 11 17 18 19 17 Final Capacity 20 | 5 5 5 20 20 20 20 5 Final Carried 20 | . . 4 20 17 19 20 5 Scrap Suit Usage (%) 25 | . . . . 94 100 100 83 Parts Cannibalized 9 | . . . . 1 . 7 1 Class Distribution -------------------- 77% | Mutant 9% | Tank 6% | Derelict-Mutant 3% | Commander-Tank Dominant Class ---------------- Mutant | -10/Materials Mutant | -10/Subcaves Mutant | -7/Scraptown Mutant | -5/Factory Commander-Tank | -5/Waste Tank | -5/Factory Mutant | -4/Factory Resources | -11 -10 -10 -7 -5 -5 -5 -4 ----------- Run | Yrd Mat Sub Scr Fac Was Fac Fac Matter Collected 1993 | 201 . 569 180 54 252 559 178 Remotely . | . . . . . . . . Salvage Created 1895 | . . 211 . . 605 618 461 Parts 78 | . . 16 . . 13 36 13 Haulers Intercepted . | . . . . . . . . Recyclers Shooed 5 | . . . . . . 4 1 Parts Field Recycled . | . . . . . . . . Retrieved Matter . | . . . . . . . . Parts Self-Destructed 6 | . . 6 . . . . . Prevented . | . . . . . . . . Parts Restored . | . . . . . . . . Kills | -11 -10 -10 -7 -5 -5 -5 -4 ------- Run | Yrd Mat Sub Scr Fac Was Fac Fac Combat Hostiles Destroyed 28 | . . 11 . . 2 11 4 Guns 8 | . . 3 . . 1 2 2 Cannons 13 | . . 6 . . . 5 2 AOE 4 | . . 2 . . 1 1 . Classes Destroyed 9 | . . 3 . . 1 4 1 Builder 5 | . . . . . . 4 1 Tunneler 1 | . . . . . . 1 . Recycler 2 | . . . . . . . 2 Grunt 6 | . . 1 . . . 5 . Sentry 3 | . . 1 . . . 1 1 Hunter 1 | . . . . . . 1 . Programmer 7 | . . . . . . 4 3 Compactor 2 | . . . . . 2 . . Subdweller 9 | . . 9 . . . . . Best Kill Streak 4 | . . 3 . . 1 4 3 Combat Bots Only 4 | . . 3 . . 1 4 2 Max Kills in Single Turn 3 | . . 1 . . 1 3 1 Gunslinging . | . . . . . . . . Exploded 1 | . . 1 . . 1 1 . Melee . | . . . . . . . . Uniques/NPCs Destroyed . | . . . . . . . . Combat | -11 -10 -10 -7 -5 -5 -5 -4 -------- Run | Yrd Mat Sub Scr Fac Was Fac Fac Hostile Shots Fired 375 | . . 87 . . . 99 189 Missed 120 | . . 26 . . . 20 74 Hits 255 | . . 61 . . . 79 115 Projectile 255 | . . 61 . . . 79 115 AOE 3 | . . 2 . . . . 1 Critical Strikes 11 | . . 2 . . . 2 7 Part Disruptions 2 | . . . . . . . 2 Damage Taken 5430 | . . 1224 . 27 75 1864 2240 Core 1506 | . . 216 . . . 130 1160 Absorbed by Shields . | . . . . . . . . Reduced by Siege Mode 4 | . . . . . . 4 . Regen/Repaired (Parts) 62 | . . . . 3 . 52 7 Core Remaining (%) 66 | 100 . . 13 . . 87 . Volleys Fired 169 | . . 51 2 3 20 55 38 Largest 3 | . . 2 1 2 2 3 2 Hottest 200 | . . 200 30 55 55 156 94 Shots Fired 262 | . . 85 2 6 21 102 46 Gun 95 | . . 16 . 6 10 47 16 Cannon 129 | . . 51 . . . 49 29 Launcher 28 | . . 10 . . 11 6 1 Special 10 | . . 8 2 . . . . Kinetic 206 | . . 77 . 6 10 72 41 Thermal 17 | . . 8 2 . . 3 4 Explosive 18 | . . . . . 11 6 1 Electromagnetic 21 | . . . . . . 21 . Robot Hit Streak 10 | . . 10 . 3 5 7 6 Robot Miss Streak 5 | . . 5 . 1 3 5 3 Penetration Max 1 | . . . . . . . 1 Secondary Targets 1 | . . . . . . 1 . Max Gunslinging Chain 1 | . . . . . . 1 . Shots Hit Robots 149 | . . 56 . 4 6 52 31 Core Hits 58 | . . 19 . 2 4 22 11 Critical Kills 3 | . . . . . 1 . 2 Critical Parts Destroyed 1 | . . . . . . . 1 Critical Strikes 16 | . . 2 . . 1 8 5 Burn 1 | . . . . . . 1 . Destroy 4 | . . . . . 1 . 3 Blast 8 | . . 2 . . . 4 2 Corrupt 3 | . . . . . . 3 . Melee Attacks . | . . . . . . . . Impact . | . . . . . . . . Slashing . | . . . . . . . . Piercing . | . . . . . . . . Sneak Attacks . | . . . . . . . . Combat Hostiles . | . . . . . . . . Follow-up Attacks . | . . . . . . . . Damage Inflicted 6265 | . . 1644 . 87 1162 2109 1263 Guns 1535 | . . 245 . 87 194 574 435 Cannons 2629 | . . 783 . . . 1025 821 Explosions 2040 | . . 555 . . 968 510 7 Melee . | . . . . . . . . Ramming . | . . . . . . . . Kinetic 4216 | . . 1583 . 87 194 1150 1202 Thermal 223 | . . 61 . . . 108 54 Explosive 1442 | . . . . . 968 467 7 Electromagnetic 384 | . . . . . . 384 . Impact . | . . . . . . . . Slashing . | . . . . . . . . Piercing . | . . . . . . . . Highest Corruption 33 | . . . . . 29 33 11 Average Corruption 23 | . . . . . 14 31 6 Corruption Purged . | . . . . . . . . Corruption Blocked . | . . . . . . . . Effects 88 | . . . . . 14 63 11 Message Errors 21 | . . . . . 4 14 3 Matter Fused 18 | . . . . . 3 13 2 Heat Flow Errors 13 | . . . . . 1 9 3 Energy Discharges 13 | . . . . . 2 10 1 Parts Rejected 1 | . . . . . . 1 . Parts Fused 1 | . . . . . . 1 . Data Loss (minor) 11 | . . . . . 4 6 1 Data Loss (major) 1 | . . . . . . 1 . Misfires 3 | . . . . . . 2 1 Alerts 2 | . . . . . . 2 . Misdirections 1 | . . . . . . 1 . Weapon Failures 3 | . . . . . . 3 . Overload Shots . | . . . . . . . . Overflow Damage 113 | . . 3 . . . 50 60 Projectiles 107 | . . 3 . . . 44 60 Explosions 6 | . . . . . . 6 . Melee . | . . . . . . . . Knockbacks 19 | . . 7 . . . 5 7 Impact . | . . . . . . . . Kinetic 19 | . . 7 . . . 5 7 Secondary . | . . . . . . . . Self-Inflicted Damage 113 | . . 37 . . 76 . . Shots 3 | . . 1 . . 2 . . Rammed . | . . . . . . . . Targets Rammed . | . . . . . . . . Kicked . | . . . . . . . . Crushed . | . . . . . . . . Highest Temperature 444 | . . 290 . . 191 444 269 Average Temperature 114 | . . 93 . . 52 148 53 Received Heat Transfer 1008 | . . 621 . . . 285 102 Effects 4 | . . . . . . 4 . Shutdowns 1 | . . . . . . 1 . Energy Bleed 3 | . . . . . . 3 . Siege Activations 2 | . . . . . . 2 . Total Turns 29 | . . . . . . 29 . Longest Duration 27 | . . . . . . 27 . Martial Activations . | . . . . . . . . Shielding Activations . | . . . . . . . . Robots Disrupted . | . . . . . . . . Combat Hostiles . | . . . . . . . . Robots Corrupted 3 | . . . . . . 3 . Combat Hostiles 3 | . . . . . . 3 . Parts Fried 3 | . . . . . . 3 . Impact Corruptions . | . . . . . . . . Robots Melted . | . . . . . . . . Combat Hostiles . | . . . . . . . . Parts Melted . | . . . . . . . . Heat Transferred 828 | . . 480 . . . 274 74 Parts Sabotaged . | . . . . . . . . Parts Stolen . | . . . . . . . . Parts Stripped . | . . . . . . . . Power Chain Reactions . | . . . . . . . . Alert | -11 -10 -10 -7 -5 -5 -5 -4 ------- Run | Yrd Mat Sub Scr Fac Was Fac Fac Maximum Alert Level 1 | . . . . 1 . . . Low Security (%) 98 | 100 100 . . 80 100 100 100 Level 1 1 | . . . . 19 . . . Level 2 . | . . . . . . . . Level 3 . | . . . . . . . . Level 4 . | . . . . . . . . Level 5 . | . . . . . . . . High Security . | . . . . . . . . Max Security . | . . . . . . . . Peak Influence 263 | . . . . 263 140 190 102 Initial 88 | . . . . . 88 32 54 Average 73 | . . . . 50 94 103 28 Influence Increases 1329 | . . 40 . 263 118 564 344 Destroy 0b10 Robot/C 460 | . . 40 . 80 . 240 100 Destroy 0b10 Robot/NC 45 | . . . . . . 30 15 Destroy Leader 100 | . . . . 10 . 60 30 Allied During Kill 74 | . . . . 45 . 27 2 Successful Hack 6 | . . . . . . 6 . Disable Machine 135 | . . . . 60 . 45 30 Destroy Structure 374 | . . . . 68 118 126 62 Lose Combat Pursuer 135 | . . . . . . 30 105 Influence Decreases 1235 | . . 40 . 10 325 498 362 Entered New Map 237 | . . . . . 165 14 58 Time Decay 828 | . . 30 . 10 160 418 210 Lost Part 144 | . . 10 . . . 60 74 Lost Ally 26 | . . . . . . 6 20 Squads Dispatched 9 | . . . . 1 . 6 2 Investigation 2 | . . . . 1 . 1 . Extermination 3 | . . . . . . 2 1 Reinforcement 3 | . . . . . . 3 . Assault . | . . . . . . . . Garrison 1 | . . . . . . . 1 Intercept . | . . . . . . . . Searches Triggered . | . . . . . . . . Construction Impeded 2 | . . . . . . 2 . Haulers Reinforced 1 | . . . . . . 1 . Active Scanning Responses . | . . . . . . . . Cargo Convoy Interrupts . | . . . . . . . . Stealth | -11 -10 -10 -7 -5 -5 -5 -4 --------- Run | Yrd Mat Sub Scr Fac Was Fac Fac Distress Signals 1 | . . . . . . 1 . Communications Jammed . | . . . . . . . . Distress Signals . | . . . . . . . . Times Spotted 55 | . . 12 . 4 5 16 18 Peak Tracking Total 7 | . . 3 . 3 3 3 7 Tactical Retreats 3 | . . . . . . 1 2 Traps | -11 -10 -10 -7 -5 -5 -5 -4 ------- Run | Yrd Mat Sub Scr Fac Was Fac Fac Traps Triggered 4 | . . . . 1 . 3 . Indirectly . | . . . . . . . . Trap Hack Attempts . | . . . . . . . . Triggered . | . . . . . . . . Disarmed . | . . . . . . . . Reprogrammed . | . . . . . . . . Reused . | . . . . . . . . Traps Extracted . | . . . . . . . . Installed . | . . . . . . . . Triggered . | . . . . . . . . Machines | -11 -10 -10 -7 -5 -5 -5 -4 ---------- Run | Yrd Mat Sub Scr Fac Was Fac Fac Machines Disabled 9 | . . . . 4 . 3 2 Max in Single Turn 2 | . . . . . . 2 1 Machines Repaired . | . . . . . . . . Machines Dismantled . | . . . . . . . . Machines Sabotaged . | . . . . . . . . Overloaded Fab Kills . | . . . . . . . . Hacking | -11 -10 -10 -7 -5 -5 -5 -4 --------- Run | Yrd Mat Sub Scr Fac Was Fac Fac Machines Accessed 7 | . . 2 2 1 . 2 . Terminals . | . . . . . . . . Fabricators 1 | . . . . . . 1 . Repair Stations . | . . . . . . . . Recycling Units 2 | . . . . 1 . 1 . Scanalyzers . | . . . . . . . . Garrison Access . | . . . . . . . . Total Hacks 15 | . . 5 7 1 . 2 . Successful 15 | . . 5 7 1 . 2 . Failed . | . . . . . . . . Catastrophic . | . . . . . . . . Database Lockouts . | . . . . . . . . Manual 2 | . . . . 1 . 1 . Terminals . | . . . . . . . . Fabricators 1 | . . . . . . 1 . Repair Stations . | . . . . . . . . Recycling Units 2 | . . . . 1 . 1 . Scanalyzers . | . . . . . . . . Garrison Access . | . . . . . . . . Terminal Hacks 12 | . . 5 7 . . . . Record 11 | . . 4 7 . . . . Open Door 1 | . . 1 . . . . . Fabricator Hacks 1 | . . . . . . 1 . Build 1 | . . . . . . 1 . Repair Station Hacks . | . . . . . . . . Recycling Unit Hacks . | . . . . . . . . Scanalyzer . | . . . . . . . . Garrison Access Hacks . | . . . . . . . . Unauthorized Hacks 2 | . . . . 1 . 1 . Terminals . | . . . . . . . . Fabricators . | . . . . . . . . Repair Stations . | . . . . . . . . Recycling Units 2 | . . . . 1 . 1 . Scrapoids 2 | . . . . 1 . 1 . Scanalyzers . | . . . . . . . . Garrison Access . | . . . . . . . . Data Cores Recovered . | . . . . . . . . Used . | . . . . . . . . Hacking Detections 1 | . . . . . . 1 . Full Trace Events . | . . . . . . . . Feedback Events . | . . . . . . . . Feedback Blocked . | . . . . . . . . Robot Schematics Acquired . | . . . . . . . . Robots Built 1 | . . . . . . 1 . Authchips . | . . . . . . . . Time 81 | . . . . . . 81 . Total Robot Build Rating 1 | . . . . . . 1 . Part Schematics Acquired . | . . . . . . . . Parts Built . | . . . . . . . . Authchips . | . . . . . . . . Time . | . . . . . . . . Total Part Build Rating . | . . . . . . . . Part Studies Acquired . | . . . . . . . . Parts Repaired . | . . . . . . . . Time . | . . . . . . . . Parts Recycled . | . . . . . . . . Recycled Matter . | . . . . . . . . Retrieved Matter . | . . . . . . . . Retrieved Components . | . . . . . . . . Parts Scanalyzed . | . . . . . . . . Part Schematics Acquired . | . . . . . . . . Parts Damaged . | . . . . . . . . Bothacking | -11 -10 -10 -7 -5 -5 -5 -4 ------------ Run | Yrd Mat Sub Scr Fac Was Fac Fac Used RIF Installer . | . . . . . . . . Robots Hacked . | . . . . . . . . Non-combat . | . . . . . . . . Combat . | . . . . . . . . Robot Hacks Applied . | . . . . . . . . Relay Couplers Released 4 | . . . . . . . 4 Programmers 4 | . . . . . . . 4 Fabnet Peak Effective % . | . . . . . . . . Robots Rewired . | . . . . . . . . Allies Hacked 1 | . . . . . . 1 . Hacks Repelled . | . . . . . . . . Allies | -11 -10 -10 -7 -5 -5 -5 -4 -------- Run | Yrd Mat Sub Scr Fac Was Fac Fac Total Allies 12 | . . . . 5 . 6 1 Largest Group 8 | . . . . 5 5 8 1 Highest-Rated Group 377 | . . . . 235 233 377 31 Highest-Rated Ally 50 | . . . . 47 47 50 31 Total Orders . | . . . . . . . . Ally Attacks 129 | . . . . 21 77 26 5 Total Damage 3021 | . . . . 432 1947 570 72 Kills 11 | . . . . 4 4 2 1 Allies Corrupted 4 | . . . . . 2 2 . Allies Melted . | . . . . . . . . Intel | -11 -10 -10 -7 -5 -5 -5 -4 ------- Run | Yrd Mat Sub Scr Fac Was Fac Fac Active Infowar (turns) 566 | . . . . . . . 566 Decoding 566 | . . . . . . . 566 Robot Analysis Total . | . . . . . . . . Derelict Logs Recovered 1 | . . 1 . . . . . Drone Launches . | . . . . . . . . Drone Recoveries . | . . . . . . . . Decoded 0b10 Intel 14 | . . . . . . . 14 Emergency Access 1 | . . . . . . . 1 Items 12 | . . . . . . . 12 Guards 1 | . . . . . . . 1 Exploration | -11 -10 -10 -7 -5 -5 -5 -4 ------------- Run | Yrd Mat Sub Scr Fac Was Fac Fac Turns Passed 8538 | 21 104 2285 3858 139 335 1163 633 Spaces Moved 3654 | 32 9 1407 1274 52 166 495 219 Core 798 | 32 9 635 27 . . . 95 Treads 2534 | . . 456 1247 52 166 495 118 Legs . | . . . . . . . . Wheels 322 | . . 316 . . . . 6 Hover . | . . . . . . . . Flight . | . . . . . . . . Fastest Speed 50 | 50 50 50 100 210 155 153 50 Average Speed 203 | 50 50 141 290 210 165 171 223 Slowest Speed 1200 | 50 50 400 360 210 210 240 1200 Overloaded Moves . | . . . . . . . . Propulsion Burnouts . | . . . . . . . . Robots Hopped . | . . . . . . . . Potential Cave-ins . | . . . . . . . . Cave-ins Triggered . | . . . . . . . . Exploration Rate (%) 32 | 3 4 56 86 2 84 16 7 Regions Visited 7 Branch Regions 2 Pre-discovered Areas 1 | . . 1 . . . . . Known Exits Taken . | . . . . . . . . Unknown Exits Taken 5 | 1 1 1 1 . . 1 . Scrap Searched 11 | . . 7 4 . . . . Spaces Dug 19 | . . . . . 19 . . Terrain Destroyed 245 | . . 50 . . 99 70 26 Melee . | . . . . . . . . Projectile 33 | . . 3 . . 5 10 15 AOE 212 | . . 47 . . 94 60 11 Terrain Rammed . | . . . . . . . . Walls Destroyed . | . . . . . . . . Machines Disabled . | . . . . . . . . Actions | -11 -10 -10 -7 -5 -5 -5 -4 --------- Run | Yrd Mat Sub Scr Fac Was Fac Fac Total 4518 | 37 107 1610 1426 78 208 723 329 Wait 554 | . 99 104 117 21 13 158 42 Move 3648 | 31 8 1406 1273 52 165 494 219 Hop . | . . . . . . . . Pick Up 49 | 3 . 16 21 . 4 3 2 Fast Attach 7 | . . 2 1 . 1 . 3 Attach 37 | 1 . 11 6 2 2 5 10 Detach 12 | . . . 2 . . 3 7 Swap 13 | . . 6 1 . 3 2 1 Drop 22 | 2 . 7 3 . . 3 7 Fire 169 | . . 51 2 3 20 55 38 Melee . | . . . . . . . . Ram . | . . . . . . . . Kick . | . . . . . . . . Crush . | . . . . . . . . Escape Stasis . | . . . . . . . . Rewire . | . . . . . . . . Trap . | . . . . . . . . Miscellaneous 7 | . . 7 . . . . . Route ------- -11/Scrapyard -10/Materials -10/Subcaves (discovered 3 exits: [*Mat x2] / *Scr) -7/Scraptown -5/Factory -5/Waste -5/Factory -4/Factory History --------- Turn | Location | Event 3 | -11/Scrapyard | Discovered new exit (range 15) 22 | -11/Scrapyard | Entered Materials 116 | -10/Materials | Discovered new exit (range 4) 126 | -10/Materials | Entered Subcaves 127 | -10/Subcaves | Approached by a straggling Scientist 158 | -10/Subcaves | Learned Materials security intel 166 | -10/Subcaves | Shifting Twisted Machinery released Mak. Light Armor Plating 166 | -10/Subcaves | Shifting Twisted Machinery released Battle Cannon 197 | -10/Subcaves | Scientist uncovered a shortcut to Scraptown 327 | -10/Subcaves | Build established: Mutant 786 | -10/Subcaves | Discovered new exit (range 15) 1174 | -10/Subcaves | Build established: Derelict-Mutant 1510 | -10/Subcaves | Ambushed by Subdweller buried in earth 1535 | -10/Subcaves | Core integrity fell below 50% 1576 | -10/Subcaves | Shifting Twisted Machinery released Flamer 1578 | -10/Subcaves | Shifting Twisted Machinery released Flamer 1679 | -10/Subcaves | Discovered new exit (range 9) 1720 | -10/Subcaves | Build established: Mutant 1981 | -10/Subcaves | Core integrity fell below 20% 2007 | -10/Subcaves | Lost 5 parts (1n4w) 2032 | -10/Subcaves | Visited Clippyterm 2036 | -10/Subcaves | Learned location of Section 7 (-3) 2351 | -10/Subcaves | Shifting Twisted Machinery released Sub. Power Source 2411 | -10/Subcaves | Entered Scraptown 2452 | -7/Scraptown | Heard Great Nut preacher, LISTEN AND RECITE! 2994 | -7/Scraptown | Visited Comm Corps 3138 | -7/Scraptown | Visited Cave Peace 3174 | -7/Scraptown | Visited Junk Repository 3285 | -7/Scraptown | Visited Scrapoid Research Area 3393 | -7/Scraptown | Visited Science Testing Area 3426 | -7/Scraptown | Visited Assassins FH 4398 | -7/Scraptown | Visited TADAMA 4470 | -7/Scraptown | Visited UFD Registry 4470 | -7/Scraptown | Registered with UFD as "Thermoshaft" 4560 | -7/Scraptown | Visited Sword Containment 4632 | -7/Scraptown | Visited LU-1G1's Boring Crew 4754 | -7/Scraptown | Visited Science Guys 4801 | -7/Scraptown | Visited Observation Area 4934 | -7/Scraptown | Visited Research Penetration Think Tank 5035 | -7/Scraptown | Visited Modified Component R&D 5180 | -7/Scraptown | Visited Infowarlord's Domain 5237 | -7/Scraptown | Visited Chapter 10 5300 | -7/Scraptown | Visited Botcube Research 5321 | -7/Scraptown | Found Botcube 5820 | -7/Scraptown | Visited Abandonware Association 5845 | -7/Scraptown | Learned abandonware demo "SHUTEYE.EXE" 5936 | -7/Scraptown | Found Scrap Suit 6153 | -7/Scraptown | Met Optimus 6153 | -7/Scraptown | Accepted into 0bPrime 6254 | -7/Scraptown | Discovered new exit (range 3) 6269 | -7/Scraptown | Entered Factory 6269 | -5/Factory | Evolved 10 slots: Power x1, Propulsion x4, Utility x4, Weapon x1 6362 | -5/Factory | Scrapoid reinforcements arrived 6408 | -5/Factory | Sucked down chute 6408 | -5/Factory | Entered Waste 6420 | -5/Waste | Spotted C-40 Crusher 6423 | -5/Waste | EMP discharged 6432 | -5/Waste | Allies destroyed C-40 Crusher 6470 | -5/Waste | Spotted C-40 Crusher 6472 | -5/Waste | Destroyed C-40 Crusher 6482 | -5/Waste | Spotted C-40 Crusher 6485 | -5/Waste | Allies destroyed C-40 Crusher 6520 | -5/Waste | Spotted C-40 Crusher 6523 | -5/Waste | EMP discharged 6523 | -5/Waste | System corruption reached 10% 6535 | -5/Waste | Spotted C-40 Crusher 6540 | -5/Waste | Spotted C-40 Crusher 6543 | -5/Waste | 5 allies followed down the chute 6554 | -5/Waste | Allies destroyed C-40 Crusher 6557 | -5/Waste | Allies destroyed C-40 Crusher 6562 | -5/Waste | Destroyed C-40 Crusher 6602 | -5/Waste | Found Broken Fusion Bomb Launcher 6623 | -5/Waste | EMP discharged 6690 | -5/Waste | Discovered new exit (range 13) 6723 | -5/Waste | EMP discharged 6743 | -5/Waste | Entered Factory 6743 | -5/Factory | Accompanied by 3 allies 6808 | -5/Factory | System corruption reached 30% 6933 | -5/Factory | Scrapoid reinforcements arrived 6990 | -5/Factory | Lost 7 allies 7096 | -5/Factory | Fabricated A-02 Transporter (x1) 7232 | -5/Factory | P-70 Sage assimilated allied Transporter 6a 7300 | -5/Factory | Lost 4 parts (1n1u2w) 7870 | -5/Factory | Discovered new exit (range 16) 7906 | -5/Factory | Entered another Factory area 7906 | -4/Factory | Evolved 2 slots: Utility x2 7928 | -4/Factory | Build established: Tank 8263 | -4/Factory | Build established: Mutant 8364 | -4/Factory | Garrison activated, responded to threat 8448 | -4/Factory | Botcube activated 8454 | -4/Factory | Botcube completed mutation into wheeled form, armed with 1 cannon. 8469 | -4/Factory | Core integrity fell below 50% 8470 | -4/Factory | System corruption reached 10% 8478 | -4/Factory | Core integrity fell below 20% 8489 | -4/Factory | Lost 4 parts (1p1u2w) 8539 | -4/Factory | Destroyed by P-70 Sage with High-powered Shock Rifle Last Messages --------------- Acquired 1 matter. Acquired 10 matter. >> DECODED: Centrium Wheel location. Ovr. Railgun recovered from malfunction. Ovr. Railgun suddenly begins malfunctioning. Critical hit (Destroy). Ovr. Railgun destroyed. Door malfunctions. System corrupted: Heat flow error (+199). >> DECODED: Matter Neutralizer location. K-01 Serf cleans the Subcomponent Replicator. Acquired Dispersion Rifle. K-01 Serf cleans the Assembly Bed. Assembly Bed disabled. Destroyed VTOL Module. K-01 Serf collects debris. System corrupted: Matter fused (-5). K-01 Serf collects debris. Acquired Centrium Wheel. S-27 Virus destroyed. Map ----- +----------------------------------------------------+ | | | | | | | | | | | | | | | | | ?????????????????????????????????????????????????? | | ?????????????????????????????????????????????????? | | ?????????????????????????????????????????????????? | | ???????????????????????????? ????????????????????? | | ???????????????????# ?????? ????????????????????? | | ???????????????????# ??? ??? ??????????????? | | ???????????????????# """"" "??? "??????????????? | | ???????????????????# """"" """ ""?????????????? | | ???????????????????# """ """ """ ???????????? | | ???????????????##### ???????????? | | ###????????????? ???????????? | | ######## ??? R ?????????????? | | ???? #??????????????? | | ########?????????# #??????????????? | | ###????????????????# #??????????????? | | #??????????????????# #??????????????? | | ##?????????????????# #??????????????? | | ##?????????????????# @ #??????????????? | | #??????????????????# #??????????????? | | #??????????????????# +?????????? | | #????????????????#####p#################?????????? | | #??##????????????# = #????????????????????? | | #??# ???????????# [%=""""" #????????????????????? | | #??# ???????????# p"""""" #????????????????????? | | #??# ????""?????#ks """""" #????????????????????? | | #??# ""? ""?????# """" #????????????????????? | | #??# ?? ## #????????????????????? | | #### """ """ #######+#####????????????????????? | | # """ """ #?# #????????????????????????? | | # """ """ ### #????????????????????????? | | # ?+ #????????????????????????? | | # # #????????????????????????? | | # + #????????????????????????? | | # # #????????????????????????? | | ###/########## ##???????????????????????? | | ?????????????????? | | ????????????????? | | !! ????????????????? | | !! ?????????????????? | | ! ?????????????????? | | ##/## ######### """ """?????????????????? | | # #???????# """ "???????????????????? | +----------------------------------------------------+ Best States ------------- Heat Dissipation 43 Coolant Potential 50 Energy Generation 23 Energy Capacity 310 Matter Stores 300 Matter Capacity 300 Sight Range 16 Terrain Scan Density 10 Armor Coverage 800 Evasion (%) 50 Target Analysis 6 Recoil Reduction 6 Salvage Targeting 6 Item Schematics ----------------- None Robot Schematics ------------------ None Fabricated ------------ A-02 Transporter | x1 | -5/Factory | Preloaded Repaired ---------- Nothing Studied --------- None Alien Tech Used ----------------- None Achievements -------------- Botjacking Nice Directions, Buddy Survival Of The Most Covered Challenges ------------ None Game ------ Seed VariableSegregatorSegregator Manual? 0 Play Time 00:43:24 Cumulative 199.6 hours Start 2025.10.28 @ 20:31:07 End 2025.10.28 @ 21:12:01 Sessions 1 Manual Loads 0 Difficulty Rogue Special Mode None Game No. 585 Rogue 584 Adventurer 1 Explorer 0 Win Type - Total 0 Types 0/0/0/0/0/0/0/0/0/0 Lore% 64 Gallery% 60 Achievement% 34 Wizard Run 0 Options --------- Layout 1 ASCII 0 Keyboard 0 Movement Mouse Keybinds 0 Fullscreen 1 Font 24/Smallcaps Map View 50x35 Zoom Use 0% Tactical HUD 0 Map Filters NONE Filters NONE Steam 1 RUN: 82881bc4-f188-49cc-8d4a-1eb5c843ea0b